[Event "ONJK-C 2019"]
[Site "Borne"]
[Date "2019.08.07"]
[Round "5.11"]
[White "De Putter, Sven"]
[Black "Nielsen, Philip"]
[Result "0-1"]
[ECO "B08"]
[WhiteElo "1319"]
[BlackElo "1797"]
[Annotator "NA"]
[PlyCount "48"]
[EventDate "2019.08.05"]
[EventType "swiss"]
[EventCountry "NED"]
[SourceTitle "playchess.com"]
[Source "ChessBase"]
[SourceQuality "1"]
[TimeControl "5400+30"]

1. e4 {[%emt 0:00:00]} d6 {[%emt 0:00:00]} 2. d4 {[%emt 0:00:00]} Nf6 {[%emt 0:00:00]} 3. Nc3 {[%emt 0:00:05]} g6 {[%emt 0:00:00]} 4. Bc4 {[%emt 0:03:29]} Bg7 {[%emt 0:00:13]} 5. Nf3 {[%emt 0:00:33]} O-O {[%emt 0:00:26]} 6. O-O {[%emt 0:00:13]} e6 {[%emt 0:02:05]} 7. Bg5 {[%emt 0:06:24]} Qd7 {[%emt 0:03:08]} 8. Qd2 {[%emt 0:03:55]} a6 {[%emt 0:01:56]} 9. Rad1 {[%emt 0:10:24]} b6 {[%emt 0:07:08]} 10. Bh6 {[%emt 0:13:25]} Bb7 {[%emt 0:04:04]} 11. Rfe1 {[%emt 0:03:11]} Rd8 {[%emt 0:05:08]} 12. Qg5 {[%emt 0:18:50]} b5 {[%emt 0:05:15]} 13. Bd3 {[%emt 0:15:34]} b4 {[%emt 0:01:57]} 14. e5 {[%emt 0:08:28]} Nd5 {[%emt 0:02:09]} 15. Nxd5 {[%emt 0:01:58]} Bxd5 {[%emt 0:00:13]} 16. Be4 {[%emt 0:02:03]} Bxe4 {[%emt 0:00:47]} 17. Rxe4 {[%emt 0:00:24]} Nc6 {[%emt 0:01:24]} 18. Rh4 {[%emt 0:03:38]} Qe7 {[%emt 0:01:34]} 19. exd6 {[%emt 0:03:47]} Qxg5 {[%emt 0:01:36]} 20. Bxg5 {[%emt 0:01:51]} Rxd6 {[%emt 0:00:58]} 21. c3 {[%emt 0:01:44]} bxc3 {[%emt 0:00:22]} 22. bxc3 {[%emt 0:00:11]} Rb8 {[%emt 0:00:10]} 23. h3 {[%emt 0:00:49]} Rb2 {[%emt 0:01:03]} 24. a4 {[%emt 0:00:32]} Ra2 {[%emt 0:00:23]} 0-1

[Event "ONJK-C 2019"]
[Site "Borne"]
[Date "2019.08.07"]
[Round "5.13"]
[White "Van Doren, Frodo"]
[Black "Molanus, Eva"]
[Result "1-0"]
[ECO "B76"]
[WhiteElo "1433"]
[BlackElo "1281"]
[Annotator "NA"]
[PlyCount "33"]
[EventDate "2019.08.05"]
[EventType "swiss"]
[EventCountry "NED"]
[SourceTitle "playchess.com"]
[Source "ChessBase"]
[SourceQuality "1"]
[TimeControl "5400+30"]

1. e4 {[%emt 0:00:00]} c5 {[%emt 0:00:00]} 2. Nf3 {[%emt 0:00:00]} d6 {[%emt 0:00:00]} 3. d4 {[%emt 0:00:00]} cxd4 {[%emt 0:00:00]} 4. Nxd4 {[%emt 0:00:00]} Nf6 {[%emt 0:00:00]} 5. Nc3 {[%emt 0:00:00]} g6 {[%emt 0:00:07]} 6. f3 {[%emt 0:03:17]} Bg7 {[%emt 0:00:10]} 7. Be3 {[%emt 0:00:06]} O-O {[%emt 0:00:18]} 8. Qd2 {[%emt 0:00:39]} Nc6 {[%emt 0:00:11]} 9. O-O-O {[%emt 0:02:00]} d5 {[%emt 0:03:04]} 10. exd5 {[%emt 0:06:18]} Nxd5 {[%emt 0:02:35]} 11. Nxc6 {[%emt 0:01:58]} bxc6 {[%emt 0:04:35]} 12. Nxd5 {[%emt 0:00:21]} cxd5 {[%emt 0:00:13]} 13. Qxd5 {[%emt 0:01:24]} Qc7 {[%emt 0:04:16]} 14. Qxa8 {[%emt 0:04:54]} Bf5 {[%emt 0:00:20]} 15. Qxf8+ {[%emt 0:01:09]} Kxf8 {[%emt 0:00:09]} 16. Rd2 {[%emt 0:01:06]} Qe5 {[%emt 0:01:11]} 17. Rd8# {[%emt 0:01:39]} 1-0

[Event "ONJK-C 2019"]
[Site "Borne"]
[Date "2019.08.07"]
[Round "5.14"]
[White "Molanus, Florian"]
[Black "Voorbergen, Milan"]
[Result "1-0"]
[ECO "D20"]
[WhiteElo "1287"]
[BlackElo "1410"]
[Annotator "NA"]
[PlyCount "65"]
[EventDate "2019.08.05"]
[EventType "swiss"]
[EventCountry "NED"]
[SourceTitle "playchess.com"]
[Source "ChessBase"]
[SourceQuality "1"]
[TimeControl "5400+30"]

1. d4 {[%emt 0:00:00]} d5 {[%emt 0:00:00]} 2. c4 {[%emt 0:00:00]} dxc4 {[%emt 0:00:02]} 3. e3 {[%emt 0:00:00]} Nf6 {[%emt 0:00:18]} 4. Bxc4 {[%emt 0:00:09]} e6 {[%emt 0:00:21]} 5. Nc3 {[%emt 0:00:25]} Nc6 {[%emt 0:00:21]} 6. Nf3 {[%emt 0:01:17]} Be7 {[%emt 0:00:25]} 7. e4 {[%emt 0:00:28]} O-O {[%emt 0:00:32]} 8. O-O {[%emt 0:00:16]} b6 {[%emt 0:01:19]} 9. Qd3 {[%emt 0:03:28]} a6 {[%emt 0:01:32]} 10. Bg5 {[%emt 0:04:45]} Bb7 {[%emt 0:02:04]} 11. Bb3 {[%emt 0:04:32]} Na5 {[%emt 0:02:43]} 12. Bc2 {[%emt 0:01:11]} Ne8 {[%emt 0:02:15]} 13. e5 {[%emt 0:02:19]} f5 {[%emt 0:00:30]} 14. exf6 {[%emt 0:00:39]} Nxf6 {[%emt 0:01:08]} 15. Bxf6 {[%emt 0:00:24]} Bxf6 {[%emt 0:00:10]} 16. Qxh7+ {[%emt 0:00:29]} Kf7 {[%emt 0:00:07]} 17. Ne5+ {[%emt 0:03:33]} Bxe5 {[%emt 0:01:22]} 18. dxe5 {[%emt 0:00:30]} Qg5 {[%emt 0:00:30]} 19. f3 {[%emt 0:03:20]} Nc4 {[%emt 0:01:24]} 20. Ne4 {[%emt 0:02:53]} Qxe5 {[%emt 0:01:14]} 21. Rfe1 {[%emt 0:05:24]} Rh8 {[%emt 0:00:59]} 22. Nc3 {[%emt 0:01:51]} Qg5 {[%emt 0:03:33]} 23. Qd3 {[%emt 0:02:23]} Ne5 {[%emt 0:01:43]} 24. Rxe5 {[%emt 0:05:45]} Qxe5 {[%emt 0:00:13]} 25. f4 {[%emt 0:04:46]} Qh5 {[%emt 0:02:04]} 26. Qd7+ {[%emt 0:01:24]} Kf8 {[%emt 0:01:12]} 27. h3 {[%emt 0:00:22]} Qc5+ {[%emt 0:01:16]} 28. Kf1 {[%emt 0:00:40]} Qc4+ {[%emt 0:00:25]} 29. Bd3 {[%emt 0:00:19]} Qxf4+ {[%emt 0:00:21]} 30. Ke1 {[%emt 0:00:26]} Qh4+ {[%emt 0:00:43]} 31. Ke2 {[%emt 0:00:22]} Rd8 {[%emt 0:02:14]} 32. Rf1+ {[%emt 0:00:14]} Kg8 {[%emt 0:00:28]} 33. Qf7# {[%emt 0:00:11]} 1-0

[Event "ONJK-C 2019"]
[Site "Borne"]
[Date "2019.08.08"]
[Round "6.1"]
[White "De Rycke, Tyani"]
[Black "Smeets, Kobe"]
[Result "1-0"]
[ECO "B23"]
[WhiteElo "1787"]
[BlackElo "1530"]
[Annotator "NA"]
[PlyCount "99"]
[EventDate "2019.08.05"]
[EventType "swiss"]
[EventCountry "NED"]
[SourceTitle "playchess.com"]
[Source "ChessBase"]
[SourceQuality "1"]
[TimeControl "5400+30"]

1. e4 {[%emt 0:00:00]} c5 {[%emt 0:00:00]} 2. Nc3 {[%emt 0:00:00]} e6 {[%emt 0:00:00]} 3. g3 {[%emt 0:00:00]} d5 {[%emt 0:00:00]} 4. exd5 {[%emt 0:00:00]} exd5 {[%emt 0:00:00]} 5. Bg2 {[%emt 0:00:00]} Nf6 {[%emt 0:00:00]} 6. Nge2 {[%emt 0:00:00]} Be7 {[%emt 0:00:05]} 7. O-O {[%emt 0:00:00]} O-O {[%emt 0:00:12]} 8. Nf4 {[%emt 0:00:12]} d4 {[%emt 0:01:46]} 9. Ne4 {[%emt 0:00:26]} Nc6 {[%emt 0:01:00]} 10. d3 {[%emt 0:02:40]} Ne5 {[%emt 0:07:32]} 11. h3 {[%emt 0:02:33]} Rb8 {[%emt 0:09:14]} 12. Nxf6+ {[%emt 0:01:08]} Bxf6 {[%emt 0:00:32]} 13. Nd5 {[%emt 0:00:55]} Ng6 {[%emt 0:07:39]} 14. h4 {[%emt 0:01:40]} Ne5 {[%emt 0:25:36]} 15. Bf4 {[%emt 0:07:02]} b6 {[%emt 0:08:40]} 16. Re1 {[%emt 0:01:30]} Re8 {[%emt 0:00:41]} 17. Nxf6+ {[%emt 0:00:23]} gxf6 {[%emt 0:00:09]} 18. Be4 {[%emt 0:28:22]} Bg4 {[%emt 0:04:58]} 19. Qd2 {[%emt 0:07:49]} Rc8 {[%emt 0:03:23]} 20. Bxe5 {[%emt 0:01:41]} fxe5 {[%emt 0:01:05]} 21. Qh6 {[%emt 0:00:57]} f5 {[%emt 0:04:43]} 22. Bc6 {[%emt 0:04:57]} Rxc6 {[%emt 0:03:51]} 23. Qxc6 {[%emt 0:00:10]} e4 {[%emt 0:00:51]} 24. dxe4 {[%emt 0:03:19]} Bf3 {[%emt 0:01:15]} 25. Qd5+ {[%emt 0:00:07]} Qxd5 {[%emt 0:00:50]} 26. exd5 {[%emt 0:00:06]} Rxe1+ {[%emt 0:01:10]} 27. Rxe1 {[%emt 0:00:06]} Bxd5 {[%emt 0:00:08]} 28. Re7 {[%emt 0:01:03]} Bxa2 {[%emt 0:00:42]} 29. Rxa7 {[%emt 0:00:18]} Bb1 {[%emt 0:00:04]} 30. c3 {[%emt 0:00:21]} dxc3 {[%emt 0:03:19]} 31. bxc3 {[%emt 0:00:08]} Bd3 {[%emt 0:00:24]} 32. Rb7 {[%emt 0:01:35]} b5 {[%emt 0:00:05]} 33. Rc7 {[%emt 0:00:40]} b4 {[%emt 0:00:24]} 34. cxb4 {[%emt 0:00:06]} cxb4 {[%emt 0:00:06]} 35. Rb7 {[%emt 0:00:04]} Kh8 {[%emt 0:01:03]} 36. f3 {[%emt 0:00:46]} Bc2 {[%emt 0:00:13]} 37. Rxb4 {[%emt 0:00:07]} Kg7 {[%emt 0:00:06]} 38. Rb6 {[%emt 0:00:12]} h5 {[%emt 0:01:30]} 39. Kf2 {[%emt 0:00:10]} Ba4 {[%emt 0:00:20]} 40. Ke3 {[%emt 0:00:24]} Bd1 {[%emt 0:00:25]} 41. Kf4 {[%emt 0:00:23]} Be2 {[%emt 0:01:09]} 42. Re6 {[%emt 0:00:39]} Bd1 {[%emt 0:00:48]} 43. Re5 {[%emt 0:00:19]} Bb3 {[%emt 0:00:28]} 44. Rxf5 {[%emt 0:00:12]} Kh6 {[%emt 0:00:10]} 45. Rf6+ {[%emt 0:00:22]} Kg7 {[%emt 0:00:17]} 46. Kg5 {[%emt 0:00:07]} Bc2 {[%emt 0:00:19]} 47. Rc6 {[%emt 0:00:13]} Bd1 {[%emt 0:00:23]} 48. Rc7+ {[%emt 0:00:28]} Kg8 {[%emt 0:00:08]} 49. Kxh5 {[%emt 0:00:17]} Bxf3+ {[%emt 0:00:07]} 50. Kg5 {[%emt 0:00:09]} 1-0

[Event "ONJK-C 2019"]
[Site "Borne"]
[Date "2019.08.08"]
[Round "6.2"]
[White "Malfliet, Alexander"]
[Black "Klugstedt, Vincent"]
[Result "0-1"]
[ECO "B34"]
[WhiteElo "1491"]
[BlackElo "1834"]
[Annotator "NA"]
[PlyCount "30"]
[EventDate "2019.08.05"]
[EventType "swiss"]
[EventCountry "NED"]
[SourceTitle "playchess.com"]
[Source "ChessBase"]
[SourceQuality "1"]
[TimeControl "5400+30"]

1. e4 {[%emt 0:00:00]} c5 {[%emt 0:00:00]} 2. Nf3 {[%emt 0:00:00]} Nc6 {[%emt 0:00:00]} 3. d4 {[%emt 0:00:00]} cxd4 {[%emt 0:00:00]} 4. Nxd4 {[%emt 0:00:00]} g6 {[%emt 0:00:00]} 5. Nc3 {[%emt 0:00:00]} Bg7 {[%emt 0:00:04]} 6. Be3 {[%emt 0:00:02]} Nf6 {[%emt 0:00:40]} 7. f3 {[%emt 0:00:07]} O-O {[%emt 0:01:02]} 8. Qd2 {[%emt 0:00:24]} d5 {[%emt 0:02:01]} 9. exd5 {[%emt 0:09:00]} Nxd5 {[%emt 0:00:14]} 10. Nxd5 {[%emt 0:00:33]} Qxd5 {[%emt 0:00:22]} 11. Nxc6 {[%emt 0:00:12]} Qxc6 {[%emt 0:01:20]} 12. O-O-O {[%emt 0:00:57]} Bf5 {[%emt 0:00:32]} 13. Qf2 {[%emt 0:02:26]} Qa4 {[%emt 0:04:27]} 14. a3 {[%emt 0:00:43]} Bxc2 {[%emt 0:01:11]} 15. Rd2 {[%emt 0:07:41]} Bxb2+ {[%emt 0:00:37]} 0-1

[Event "ONJK-C 2019"]
[Site "Borne"]
[Date "2019.08.08"]
[Round "6.3"]
[White "De Vries, Fabian"]
[Black "Dhaenens, Leon"]
[Result "1-0"]
[ECO "A30"]
[WhiteElo "1704"]
[BlackElo "1583"]
[Annotator "NA"]
[PlyCount "61"]
[EventDate "2019.08.05"]
[EventType "swiss"]
[EventCountry "NED"]
[SourceTitle "playchess.com"]
[Source "ChessBase"]
[SourceQuality "1"]
[TimeControl "5400+30"]

1. Nf3 {[%emt 0:00:17]} c5 {[%emt 0:00:07]} 2. g3 {[%emt 0:00:09]} b6 {[%emt 0:01:07]} 3. Bg2 {[%emt 0:00:27]} Bb7 {[%emt 0:00:05]} 4. O-O {[%emt 0:01:20]} Nf6 {[%emt 0:00:48]} 5. c4 {[%emt 0:01:11]} e6 {[%emt 0:06:02]} 6. Nc3 {[%emt 0:01:51]} a6 {[%emt 0:02:16]} 7. d4 {[%emt 0:01:33]} cxd4 {[%emt 0:01:05]} 8. Nxd4 {[%emt 0:00:41]} Bxg2 {[%emt 0:00:08]} 9. Kxg2 {[%emt 0:00:07]} Qc7 {[%emt 0:03:00]} 10. Qd3 {[%emt 0:06:04]} Be7 {[%emt 0:05:15]} 11. b3 {[%emt 0:06:05]} O-O {[%emt 0:11:28]} 12. Bb2 {[%emt 0:00:56]} d6 {[%emt 0:05:08]} 13. Rfd1 {[%emt 0:05:26]} Nbd7 {[%emt 0:04:06]} 14. Rac1 {[%emt 0:06:57]} Rac8 {[%emt 0:03:50]} 15. Ba3 {[%emt 0:11:10]} Rfd8 {[%emt 0:04:47]} 16. e4 {[%emt 0:03:10]} Qb7 {[%emt 0:05:01]} 17. f3 {[%emt 0:06:46]} Nc5 {[%emt 0:07:36]} 18. Qe3 {[%emt 0:03:21]} Bf8 {[%emt 0:06:23]} 19. Bxc5 {[%emt 0:09:54]} bxc5 {[%emt 0:07:27]} 20. Nde2 {[%emt 0:00:53]} d5 {[%emt 0:00:35]} 21. cxd5 {[%emt 0:01:45]} exd5 {[%emt 0:00:08]} 22. exd5 {[%emt 0:00:11]} Nxd5 {[%emt 0:00:23]} 23. Qe4 {[%emt 0:02:39]} Nxc3 {[%emt 0:08:28]} 24. Qxb7 {[%emt 0:00:39]} Nxd1 {[%emt 0:00:07]} 25. Rxd1 {[%emt 0:00:31]} Rxd1 {[%emt 0:00:48]} 26. Qxc8 {[%emt 0:00:10]} Rd6 {[%emt 0:00:05]} 27. Kf2 {[%emt 0:01:18]} Re6 {[%emt 0:00:07]} 28. Nc3 {[%emt 0:00:33]} g6 {[%emt 0:00:39]} 29. Ne4 {[%emt 0:00:53]} Rb6 {[%emt 0:01:48]} 30. Nxc5 {[%emt 0:01:18]} a5 {[%emt 0:00:00]} 31. Nd7 {[%emt 0:00:35]} 1-0

[Event "ONJK-C 2019"]
[Site "Borne"]
[Date "2019.08.08"]
[Round "6.4"]
[White "Arnold, Lorin"]
[Black "Kumar, Prajit Sai"]
[Result "1/2-1/2"]
[ECO "B23"]
[WhiteElo "1583"]
[BlackElo "1574"]
[Annotator "NA"]
[PlyCount "57"]
[EventDate "2019.08.05"]
[EventType "swiss"]
[EventCountry "NED"]
[SourceTitle "playchess.com"]
[Source "ChessBase"]
[SourceQuality "1"]
[TimeControl "5400+30"]

1. e4 {[%emt 0:00:00]} c5 {[%emt 0:00:00]} 2. Nc3 {[%emt 0:00:00]} d6 {[%emt 0:00:00]} 3. f4 {[%emt 0:00:02]} Nc6 {[%emt 0:00:05]} 4. Nf3 {[%emt 0:00:04]} a6 {[%emt 0:00:44]} 5. a4 {[%emt 0:00:21]} Bd7 {[%emt 0:00:44]} 6. Bc4 {[%emt 0:00:09]} e6 {[%emt 0:00:08]} 7. O-O {[%emt 0:00:15]} Nge7 {[%emt 0:00:54]} 8. Qe1 {[%emt 0:00:26]} Qc7 {[%emt 0:05:55]} 9. Qf2 {[%emt 0:04:34]} O-O-O {[%emt 0:01:32]} 10. d4 {[%emt 0:01:42]} cxd4 {[%emt 0:03:39]} 11. Nxd4 {[%emt 0:00:11]} Nxd4 {[%emt 0:00:14]} 12. Qxd4 {[%emt 0:00:24]} d5 {[%emt 0:04:06]} 13. exd5 {[%emt 0:01:19]} Nxd5 {[%emt 0:00:37]} 14. Kh1 {[%emt 0:07:45]} Nxc3 {[%emt 0:11:35]} 15. Qxc3 {[%emt 0:00:11]} Bc6 {[%emt 0:03:00]} 16. Be3 {[%emt 0:01:18]} Bd5 {[%emt 0:02:05]} 17. Bxd5 {[%emt 0:03:35]} Rxd5 {[%emt 0:00:15]} 18. Qxc7+ {[%emt 0:03:23]} Kxc7 {[%emt 0:00:06]} 19. Rfd1 {[%emt 0:00:12]} Rxd1+ {[%emt 0:00:18]} 20. Rxd1 {[%emt 0:00:06]} Be7 {[%emt 0:00:22]} 21. g4 {[%emt 0:02:12]} Rd8 {[%emt 0:00:24]} 22. Rxd8 {[%emt 0:00:31]} Bxd8 {[%emt 0:00:06]} 23. Kg2 {[%emt 0:00:07]} Kd6 {[%emt 0:00:37]} 24. Kf3 {[%emt 0:00:20]} Bf6 {[%emt 0:00:51]} 25. b3 {[%emt 0:01:17]} Kd5 {[%emt 0:00:20]} 26. Bb6 {[%emt 0:00:58]} Bd4 {[%emt 0:00:51]} 27. Ba5 {[%emt 0:00:57]} f6 {[%emt 0:01:58]} 28. c4+ {[%emt 0:02:54]} Kd6 {[%emt 0:01:18]} 29. Ke4 {[%emt 0:00:52] Ke5+} 1/2-1/2

[Event "ONJK-C 2019"]
[Site "Borne"]
[Date "2019.08.08"]
[Round "6.5"]
[White "De Heij, Mees"]
[Black "Neisingh, Nils"]
[Result "0-1"]
[ECO "B50"]
[WhiteElo "1545"]
[BlackElo "1710"]
[Annotator "NA"]
[PlyCount "54"]
[EventDate "2019.08.05"]
[EventType "swiss"]
[EventCountry "NED"]
[SourceTitle "playchess.com"]
[Source "ChessBase"]
[SourceQuality "1"]
[TimeControl "5400+30"]

1. e4 {[%emt 0:00:00]} c5 {[%emt 0:00:00]} 2. Nf3 {[%emt 0:00:00]} d6 {[%emt 0:00:00]} 3. Nc3 {[%emt 0:00:00]} a6 {[%emt 0:00:52]} 4. a4 {[%emt 0:00:13]} Nf6 {[%emt 0:01:13]} 5. Bc4 {[%emt 0:00:45]} e6 {[%emt 0:00:43]} 6. O-O {[%emt 0:00:22]} Be7 {[%emt 0:00:04]} 7. d3 {[%emt 0:01:02]} O-O {[%emt 0:00:09]} 8. Bg5 {[%emt 0:00:17]} Nc6 {[%emt 0:02:35]} 9. h3 {[%emt 0:02:04]} Qc7 {[%emt 0:03:06]} 10. Qd2 {[%emt 0:03:13]} Bd7 {[%emt 0:07:57]} 11. Nh2 {[%emt 0:01:04]} Na5 {[%emt 0:05:01]} 12. Ng4 {[%emt 0:04:10]} Qd8 {[%emt 0:18:22]} 13. Nxf6+ {[%emt 0:02:23]} Bxf6 {[%emt 0:00:02]} 14. Bxf6 {[%emt 0:00:21]} Qxf6 {[%emt 0:00:02]} 15. f4 {[%emt 0:00:48]} Qd4+ {[%emt 0:04:38]} 16. Kh1 {[%emt 0:00:47]} Nxc4 {[%emt 0:01:10]} 17. Qe1 {[%emt 0:02:02]} Nxb2 {[%emt 0:04:19]} 18. Ra2 {[%emt 0:01:21]} Qb4 {[%emt 0:11:41]} 19. f5 {[%emt 0:04:36]} exf5 {[%emt 0:10:25]} 20. exf5 {[%emt 0:00:10]} Rae8 {[%emt 0:02:18]} 21. Qd2 {[%emt 0:01:27]} Nxa4 {[%emt 0:13:03]} 22. Qg5 {[%emt 0:01:23]} f6 {[%emt 0:00:48]} 23. Qd2 {[%emt 0:04:41]} Qxc3 {[%emt 0:00:27]} 24. Qxc3 {[%emt 0:00:16]} Nxc3 {[%emt 0:00:04]} 25. Rb2 {[%emt 0:00:14]} Bc6 {[%emt 0:00:23]} 26. Rb3 {[%emt 0:00:22]} Nb5 {[%emt 0:00:17]} 27. Rf4 {[%emt 0:00:29]} Re2 {[%emt 0:00:20]} 0-1

[Event "ONJK-C 2019"]
[Site "Borne"]
[Date "2019.08.08"]
[Round "6.6"]
[White "Nielsen, Philip"]
[Black "Wierenga, Jael"]
[Result "1-0"]
[ECO "D02"]
[WhiteElo "1797"]
[BlackElo "1469"]
[Annotator "NA"]
[PlyCount "131"]
[EventDate "2019.08.05"]
[EventType "swiss"]
[EventCountry "NED"]
[SourceTitle "playchess.com"]
[Source "ChessBase"]
[SourceQuality "1"]
[TimeControl "5400+30"]

1. d4 {[%emt 0:00:00]} d5 {[%emt 0:00:00]} 2. Bf4 {[%emt 0:00:00]} e6 {[%emt 0:00:00]} 3. e3 {[%emt 0:00:00]} Nf6 {[%emt 0:00:00]} 4. Nf3 {[%emt 0:00:19]} Be7 {[%emt 0:00:14]} 5. Bd3 {[%emt 0:00:24]} b6 {[%emt 0:00:10]} 6. Nbd2 {[%emt 0:02:20]} Bb7 {[%emt 0:01:06]} 7. Qe2 {[%emt 0:03:12]} c5 {[%emt 0:00:58]} 8. c3 {[%emt 0:00:48]} O-O {[%emt 0:01:07]} 9. Rc1 {[%emt 0:00:57]} Nbd7 {[%emt 0:00:54]} 10. O-O {[%emt 0:00:57]} Rc8 {[%emt 0:00:57]} 11. Bb1 {[%emt 0:03:07]} Nh5 {[%emt 0:03:20]} 12. Qd3 {[%emt 0:02:11]} f5 {[%emt 0:05:15]} 13. Be5 {[%emt 0:06:27]} Nhf6 {[%emt 0:03:09]} 14. h3 {[%emt 0:02:30]} Ne4 {[%emt 0:02:49]} 15. Rfe1 {[%emt 0:04:55]} Bf6 {[%emt 0:04:32]} 16. Bxf6 {[%emt 0:02:19]} Ndxf6 {[%emt 0:03:53]} 17. c4 {[%emt 0:08:14]} Nxd2 {[%emt 0:12:25]} 18. Nxd2 {[%emt 0:00:33]} Ne4 {[%emt 0:00:57]} 19. cxd5 {[%emt 0:03:45]} Bxd5 {[%emt 0:02:27]} 20. f3 {[%emt 0:04:41]} Nxd2 {[%emt 0:02:57]} 21. Qxd2 {[%emt 0:00:08]} cxd4 {[%emt 0:03:56]} 22. Qxd4 {[%emt 0:01:16]} Rxc1 {[%emt 0:02:37]} 23. Rxc1 {[%emt 0:00:06]} Qg5 {[%emt 0:00:24]} 24. Kf2 {[%emt 0:02:06]} f4 {[%emt 0:18:19]} 25. e4 {[%emt 0:01:12]} Ba8 {[%emt 0:06:29]} 26. Qd7 {[%emt 0:05:53]} Qe5 {[%emt 0:04:46]} 27. Rc2 {[%emt 0:05:57]} Bb7 {[%emt 0:03:44]} 28. a3 {[%emt 0:01:59]} Ba6 {[%emt 0:07:29]} 29. Ba2 {[%emt 0:02:08]} Qg5 {[%emt 0:03:29]} 30. Bxe6+ {[%emt 0:00:40]} Kh8 {[%emt 0:00:02]} 31. Qd1 {[%emt 0:03:51]} h6 {[%emt 0:01:48]} 32. Kg1 {[%emt 0:01:15]} Bb5 {[%emt 0:00:44]} 33. Qc1 {[%emt 0:02:42]} Ba6 {[%emt 0:01:11]} 34. Rc7 {[%emt 0:01:04]} Qf6 {[%emt 0:01:16]} 35. Bd5 {[%emt 0:01:45]} b5 {[%emt 0:00:32]} 36. Qc3 {[%emt 0:00:33]} Qg6 {[%emt 0:00:34]} 37. Rc6 {[%emt 0:00:22]} Qh5 {[%emt 0:03:06]} 38. Rxa6 {[%emt 0:00:33]} Qh4 {[%emt 0:00:20]} 39. Rxa7 {[%emt 0:00:34]} Qg3 {[%emt 0:00:26]} 40. Ra8 {[%emt 0:00:34]} Rxa8 {[%emt 0:00:38]} 41. Bxa8 {[%emt 0:00:08]} Qh4 {[%emt 0:00:20]} 42. Bd5 {[%emt 0:01:29]} Kh7 {[%emt 0:00:47]} 43. b3 {[%emt 0:00:14]} Qg3 {[%emt 0:00:14]} 44. a4 {[%emt 0:00:15]} bxa4 {[%emt 0:00:30]} 45. bxa4 {[%emt 0:00:07]} Qh4 {[%emt 0:00:08]} 46. a5 {[%emt 0:00:11]} Qe7 {[%emt 0:00:48]} 47. Kh1 {[%emt 0:00:38]} Qa7 {[%emt 0:00:26]} 48. Bc4 {[%emt 0:00:52]} Qf2 {[%emt 0:00:37]} 49. a6 {[%emt 0:00:11]} Qb6 {[%emt 0:00:59]} 50. Qa3 {[%emt 0:01:08]} Qb1+ {[%emt 0:00:36]} 51. Kh2 {[%emt 0:00:09]} Qe1 {[%emt 0:00:12]} 52. a7 {[%emt 0:01:18]} Qg3+ {[%emt 0:00:08]} 53. Kg1 {[%emt 0:00:07]} Qe1+ {[%emt 0:00:02]} 54. Bf1 {[%emt 0:00:13]} Qe3+ {[%emt 0:00:14]} 55. Qxe3 {[%emt 0:00:08]} fxe3 {[%emt 0:00:13]} 56. a8=Q {[%emt 0:00:07]} e2 {[%emt 0:00:10]} 57. Bxe2 {[%emt 0:00:52]} g5 {[%emt 0:00:36]} 58. Qc6 {[%emt 0:00:19]} h5 {[%emt 0:00:30]} 59. Kf2 {[%emt 0:00:16]} g4 {[%emt 0:00:19]} 60. Ke3 {[%emt 0:00:18]} gxh3 {[%emt 0:00:12]} 61. gxh3 {[%emt 0:00:18]} h4 {[%emt 0:00:14]} 62. Kf4 {[%emt 0:00:08]} Kg7 {[%emt 0:00:06]} 63. Kg5 {[%emt 0:00:23]} Kf7 {[%emt 0:00:10]} 64. Qf6+ {[%emt 0:00:07]} Kg8 {[%emt 0:00:11]} 65. Qe7 {[%emt 0:00:11]} Kh8 {[%emt 0:00:15]} 66. Kg6 {[%emt 0:00:08]} 1-0

[Event "ONJK-C 2019"]
[Site "Borne"]
[Date "2019.08.08"]
[Round "6.7"]
[White "Goudriaan, Rafael"]
[Black "Van Doren, Frodo"]
[Result "1-0"]
[ECO "C50"]
[WhiteElo "1719"]
[BlackElo "1433"]
[Annotator "NA"]
[PlyCount "21"]
[EventDate "2019.08.05"]
[EventType "swiss"]
[EventCountry "NED"]
[SourceTitle "playchess.com"]
[Source "ChessBase"]
[SourceQuality "1"]
[TimeControl "5400+30"]

1. e4 {[%emt 0:00:00]} e5 {[%emt 0:00:00]} 2. Nf3 {[%emt 0:00:00]} Nc6 {[%emt 0:00:00]} 3. Bc4 {[%emt 0:00:00]} Bc5 {[%emt 0:00:00]} 4. c3 {[%emt 0:00:00]} Nf6 {[%emt 0:01:40]} 5. O-O {[%emt 0:01:07]} O-O {[%emt 0:00:52]} 6. Re1 {[%emt 0:00:13]} d6 {[%emt 0:03:35]} 7. d4 {[%emt 0:00:49]} Bb6 {[%emt 0:03:05]} 8. a4 {[%emt 0:00:56]} Bg4 {[%emt 0:00:41]} 9. d5 {[%emt 0:01:27]} Qd7 {[%emt 0:10:56]} 10. dxc6 {[%emt 0:00:30]} Qxc6 {[%emt 0:00:03]} 11. Bb5 {[%emt 0:00:24]} 1-0